[Event "Late-Titled-Tuesday-Blitz-May-28-2024"]
[Site "Chess.com"]
[Date "2024.05.28"]
[Round "6"]
[White "djano"]
[Black "Boninknights"]
[Result "1-0"]
[WhiteElo "2612"]
[BlackElo "2416"]
[TimeControl "180+1"]
[EndTime "15:03:48 PDT"]
[Termination "djano won by resignation"]

1. e4 {[%clk 0:03:00.9]} 1... c5 {[%clk 0:02:57.8]} 2. Nc3 {[%clk 0:03:00.3]}
2... Nc6 {[%clk 0:02:56.3]} 3. f4 {[%clk 0:02:59.3]} 3... a6 {[%clk 0:02:55.2]}
4. Nf3 {[%clk 0:02:58.5]} 4... e6 {[%clk 0:02:54.9]} 5. d4 {[%clk 0:02:53.1]}
5... cxd4 {[%clk 0:02:53.6]} 6. Nxd4 {[%clk 0:02:54]} 6... Nxd4 {[%clk
0:02:51.7]} 7. Qxd4 {[%clk 0:02:52.9]} 7... b5 {[%clk 0:02:51.5]} 8. Be3 {[%clk
0:02:50.2]} 8... Bb7 {[%clk 0:02:50.7]} 9. O-O-O {[%clk 0:02:49.1]} 9... Rc8
{[%clk 0:02:48.6]} 10. Kb1 {[%clk 0:02:43.3]} 10... Qc7 {[%clk 0:02:47.6]} 11.
Bd3 {[%clk 0:02:35]} 11... h5 {[%clk 0:02:42.7]} 12. Rhf1 {[%clk 0:02:21.3]}
12... Nf6 {[%clk 0:02:38.3]} 13. e5 {[%clk 0:02:10.5]} 13... Ng4 {[%clk
0:02:31.5]} 14. Ne4 {[%clk 0:01:55.1]} 14... Nxh2 {[%clk 0:02:16.3]} 15. Nd6+
{[%clk 0:01:47.1]} 15... Bxd6 {[%clk 0:02:12.9]} 16. exd6 {[%clk 0:01:48]} 16...
Qc6 {[%clk 0:02:09]} 17. Qxg7 {[%clk 0:01:44.9]} 17... Rf8 {[%clk 0:02:04.8]}
18. Be4 {[%clk 0:01:06.4]} 18... Qxe4 {[%clk 0:01:50.7]} 19. Qf6 {[%clk
0:01:06.3]} 19... Qxc2+ {[%clk 0:01:46.1]} 20. Ka1 {[%clk 0:01:06.3]} 1-0

[Event "Late-Titled-Tuesday-Blitz-May-28-2024"]
[Site "Chess.com"]
[Date "2024.05.28"]
[Round "6"]
[White "jup1978"]
[Black "MKlose11"]
[Result "0-1"]
[WhiteElo "2440"]
[BlackElo "2611"]
[TimeControl "180+1"]
[EndTime "15:04:04 PDT"]
[Termination "MKlose11 won by resignation"]

1. d4 {[%clk 0:03:00.9]} 1... Nf6 {[%clk 0:02:58.4]} 2. Nf3 {[%clk 0:02:58.9]}
2... c5 {[%clk 0:02:58.6]} 3. c3 {[%clk 0:02:55.3]} 3... b6 {[%clk 0:02:58.2]}
4. Bf4 {[%clk 0:02:53.9]} 4... g6 {[%clk 0:02:58.5]} 5. e3 {[%clk 0:02:53.9]}
5... Bg7 {[%clk 0:02:58.9]} 6. Be2 {[%clk 0:02:53.6]} 6... O-O {[%clk
0:02:59.1]} 7. h3 {[%clk 0:02:52]} 7... d6 {[%clk 0:02:59.6]} 8. O-O {[%clk
0:02:51.2]} 8... Ba6 {[%clk 0:03:00.1]} 9. Nbd2 {[%clk 0:02:48]} 9... Bxe2
{[%clk 0:02:59.5]} 10. Qxe2 {[%clk 0:02:48.9]} 10... Nc6 {[%clk 0:02:59]} 11. e4
{[%clk 0:02:48.2]} 11... cxd4 {[%clk 0:02:59.2]} 12. cxd4 {[%clk 0:02:48.1]}
12... d5 {[%clk 0:02:57.1]} 13. e5 {[%clk 0:02:45.2]} 13... Ne8 {[%clk
0:02:57.3]} 14. Qe3 {[%clk 0:02:43.2]} 14... Nc7 {[%clk 0:02:56.8]} 15. Bh6
{[%clk 0:02:38.5]} 15... Ne6 {[%clk 0:02:49.9]} 16. Bxg7 {[%clk 0:02:36.9]}
16... Kxg7 {[%clk 0:02:50.8]} 17. Nb3 {[%clk 0:02:35.9]} 17... Rc8 {[%clk
0:02:50.1]} 18. Rac1 {[%clk 0:02:34.3]} 18... Qd7 {[%clk 0:02:50.1]} 19. Ng5
{[%clk 0:02:32.9]} 19... Nxg5 {[%clk 0:02:48.4]} 20. Qxg5 {[%clk 0:02:33.8]}
20... Nd8 {[%clk 0:02:48.8]} 21. Rxc8 {[%clk 0:02:27.9]} 21... Ne6 {[%clk
0:02:32.9]} 22. Rxf8 {[%clk 0:02:18.4]} 22... Nxg5 {[%clk 0:02:31.5]} 23. Ra8
{[%clk 0:02:12]} 23... a5 {[%clk 0:02:30.5]} 24. Rc1 {[%clk 0:02:10.2]} 24... a4
{[%clk 0:02:24.8]} 25. Nd2 {[%clk 0:02:09]} 25... Qb5 {[%clk 0:02:24.9]} 26. b3
{[%clk 0:02:06.1]} 26... Qd3 {[%clk 0:01:57.5]} 27. Nf1 {[%clk 0:01:43.4]} 27...
axb3 {[%clk 0:01:53.1]} 28. axb3 {[%clk 0:01:44.3]} 28... Qxd4 {[%clk
0:01:53.4]} 29. Ra7 {[%clk 0:01:42]} 29... Ne4 {[%clk 0:01:43.4]} 30. Ne3 {[%clk
0:01:38.5]} 30... Nxf2 {[%clk 0:01:39.9]} 0-1

[Event "Late-Titled-Tuesday-Blitz-May-28-2024"]
[Site "Chess.com"]
[Date "2024.05.28"]
[Round "6"]
[White "el008"]
[Black "Kostukov_Alex"]
[Result "0-1"]
[WhiteElo "2547"]
[BlackElo "2391"]
[TimeControl "180+1"]
[EndTime "15:04:04 PDT"]
[Termination "Kostukov_Alex won by resignation"]

1. Nf3 {[%clk 0:03:00.9]} 1... c5 {[%clk 0:02:55.7]} 2. c4 {[%clk 0:02:58.6]}
2... g6 {[%clk 0:02:55.1]} 3. g3 {[%clk 0:02:57.6]} 3... Bg7 {[%clk 0:02:55.2]}
4. Bg2 {[%clk 0:02:58.1]} 4... Nf6 {[%clk 0:02:56]} 5. O-O {[%clk 0:02:58.5]}
5... O-O {[%clk 0:02:56.7]} 6. d4 {[%clk 0:02:56.5]} 6... cxd4 {[%clk
0:02:57.6]} 7. Nxd4 {[%clk 0:02:57.3]} 7... Nc6 {[%clk 0:02:57.4]} 8. Nc3 {[%clk
0:02:51]} 8... Nxd4 {[%clk 0:02:56.5]} 9. Qxd4 {[%clk 0:02:51.4]} 9... d6 {[%clk
0:02:57.4]} 10. Qd2 {[%clk 0:02:45.6]} 10... Be6 {[%clk 0:02:54.3]} 11. b3
{[%clk 0:02:45.6]} 11... d5 {[%clk 0:02:54]} 12. cxd5 {[%clk 0:02:18]} 12...
Nxd5 {[%clk 0:02:52]} 13. Nxd5 {[%clk 0:02:18.3]} 13... Bxa1 {[%clk 0:02:34.6]}
14. Ba3 {[%clk 0:02:18]} 14... Bxd5 {[%clk 0:02:32.3]} 15. Bxd5 {[%clk
0:02:17.6]} 15... Bf6 {[%clk 0:02:19.6]} 16. Rd1 {[%clk 0:02:18.1]} 16... Rb8
{[%clk 0:01:55.3]} 17. h4 {[%clk 0:02:17.5]} 17... Qb6 {[%clk 0:01:43.2]} 18. h5
{[%clk 0:02:16.9]} 18... Rbd8 {[%clk 0:01:37.4]} 19. hxg6 {[%clk 0:02:14.1]}
19... hxg6 {[%clk 0:01:36.7]} 20. Qh6 {[%clk 0:02:11.4]} 20... Bg7 {[%clk
0:01:36.6]} 21. Qh1 {[%clk 0:02:11.5]} 21... e6 {[%clk 0:01:32.4]} 22. Bxf8
{[%clk 0:02:09.9]} 22... Bxf8 {[%clk 0:01:28.2]} 23. Rd3 {[%clk 0:02:03.2]}
23... Rxd5 {[%clk 0:01:23.2]} 24. Rxd5 {[%clk 0:02:04.1]} 24... exd5 {[%clk
0:01:23.1]} 25. Qxd5 {[%clk 0:02:05]} 25... Qc6 {[%clk 0:01:22.4]} 26. Qd3
{[%clk 0:02:03.6]} 26... Bc5 {[%clk 0:01:19.1]} 27. e3 {[%clk 0:02:02.2]} 27...
Qd6 {[%clk 0:01:15.8]} 28. Qc3 {[%clk 0:02:02.1]} 28... b6 {[%clk 0:01:15.6]}
29. a4 {[%clk 0:02:01.7]} 29... a5 {[%clk 0:01:15.7]} 30. Qc4 {[%clk 0:02:02.1]}
30... Kg7 {[%clk 0:01:14.3]} 31. Kg2 {[%clk 0:02:02.5]} 31... Qf6 {[%clk
0:01:14.1]} 32. Qd3 {[%clk 0:02:02.2]} 32... Qe5 {[%clk 0:01:14]} 33. Qc4 {[%clk
0:02:02.5]} 33... f5 {[%clk 0:01:13.2]} 34. Qd3 {[%clk 0:02:02.6]} 34... Qe4+
{[%clk 0:01:13.2]} 35. Qxe4 {[%clk 0:02:01.4]} 35... fxe4 {[%clk 0:01:14.1]} 36.
Kf1 {[%clk 0:01:58.8]} 36... Kf6 {[%clk 0:01:13.9]} 37. Ke2 {[%clk 0:01:58.5]}
37... Kf5 {[%clk 0:01:14]} 38. Kd2 {[%clk 0:01:58.6]} 38... Kg4 {[%clk
0:01:14.3]} 39. Ke2 {[%clk 0:01:55.9]} 39... Bb4 {[%clk 0:01:14.3]} 0-1

[Event "Late-Titled-Tuesday-Blitz-May-28-2024"]
[Site "Chess.com"]
[Date "2024.05.28"]
[Round "6"]
[White "robertoalejandro10"]
[Black "BenchGM"]
[Result "1-0"]
[WhiteElo "2487"]
[BlackElo "2227"]
[TimeControl "180+1"]
[EndTime "15:04:24 PDT"]
[Termination "robertoalejandro10 won by resignation"]

1. c4 {[%clk 0:03:00.9]} 1... Nf6 {[%clk 0:02:59.3]} 2. Nf3 {[%clk 0:03:00]}
2... b6 {[%clk 0:02:59.7]} 3. b3 {[%clk 0:03:00.2]} 3... Bb7 {[%clk 0:03:00.1]}
4. Bb2 {[%clk 0:03:00.8]} 4... g6 {[%clk 0:02:59.8]} 5. g3 {[%clk 0:03:00.6]}
5... Bg7 {[%clk 0:02:59.8]} 6. Bg2 {[%clk 0:03:01.1]} 6... O-O {[%clk
0:03:00.3]} 7. O-O {[%clk 0:03:01.5]} 7... d6 {[%clk 0:03:00.5]} 8. Nc3 {[%clk
0:03:01.6]} 8... Nbd7 {[%clk 0:03:00.9]} 9. d4 {[%clk 0:03:01.5]} 9... Re8
{[%clk 0:03:00.9]} 10. Qc2 {[%clk 0:02:55.1]} 10... e5 {[%clk 0:03:00.7]} 11.
dxe5 {[%clk 0:02:55.7]} 11... dxe5 {[%clk 0:02:57.8]} 12. Rfd1 {[%clk
0:02:54.6]} 12... Qe7 {[%clk 0:02:57.9]} 13. Rac1 {[%clk 0:02:51.6]} 13... Rad8
{[%clk 0:02:57.3]} 14. Nd5 {[%clk 0:02:51.2]} 14... Qd6 {[%clk 0:02:43.8]} 15.
Nxe5 {[%clk 0:02:03.7]} 15... Nxe5 {[%clk 0:02:39.5]} 16. Nxf6+ {[%clk
0:02:01.2]} 16... Qxf6 {[%clk 0:02:24.5]} 17. Bxb7 {[%clk 0:01:50.6]} 17...
Rxd1+ {[%clk 0:02:18.7]} 18. Rxd1 {[%clk 0:01:51.5]} 18... Nf3+ {[%clk
0:02:16.1]} 19. Bxf3 {[%clk 0:01:50.4]} 19... Qxb2 {[%clk 0:02:16.2]} 20. Qxb2
{[%clk 0:01:51.3]} 20... Bxb2 {[%clk 0:02:16.7]} 21. Rd7 {[%clk 0:01:50.9]}
21... Be5 {[%clk 0:02:15.5]} 22. Bd5 {[%clk 0:01:49.8]} 22... Rf8 {[%clk
0:02:14.7]} 23. f4 {[%clk 0:01:47.4]} 23... Bd6 {[%clk 0:02:14.6]} 24. e4 {[%clk
0:01:44.6]} 24... Kg7 {[%clk 0:02:08.6]} 25. e5 {[%clk 0:01:38.1]} 25... Bc5+
{[%clk 0:02:08.7]} 26. Kg2 {[%clk 0:01:38.6]} 26... c6 {[%clk 0:01:58.8]} 27.
Bxc6 {[%clk 0:01:35.5]} 27... Re8 {[%clk 0:01:58.3]} 28. Rxa7 {[%clk 0:01:22.1]}
28... Re7 {[%clk 0:01:58.1]} 29. Rxe7 {[%clk 0:01:21.7]} 29... Bxe7 {[%clk
0:01:59]} 30. Kf3 {[%clk 0:01:20.5]} 30... Kf8 {[%clk 0:01:58.2]} 31. Ke4 {[%clk
0:01:18.7]} 31... Bc5 {[%clk 0:01:56.8]} 32. h3 {[%clk 0:01:17]} 32... Ke7
{[%clk 0:01:57]} 33. g4 {[%clk 0:01:17.5]} 33... f6 {[%clk 0:01:57.1]} 34. exf6+
{[%clk 0:01:17.7]} 34... Kxf6 {[%clk 0:01:58]} 35. Bd7 {[%clk 0:01:16.9]} 35...
h5 {[%clk 0:01:57.6]} 36. gxh5 {[%clk 0:01:15.5]} 36... gxh5 {[%clk 0:01:58.5]}
37. f5 {[%clk 0:01:16]} 37... h4 {[%clk 0:01:57.5]} 38. Kd5 {[%clk 0:01:15.9]}
38... Bf2 {[%clk 0:01:55.7]} 39. Kc6 {[%clk 0:01:11.4]} 39... Bd4 {[%clk
0:01:55.3]} 40. b4 {[%clk 0:01:06.4]} 40... Kg5 {[%clk 0:01:55.2]} 41. c5 {[%clk
0:01:04]} 1-0

[Event "Late-Titled-Tuesday-Blitz-May-28-2024"]
[Site "Chess.com"]
[Date "2024.05.28"]
[Round "6"]
[White "protectiago"]
[Black "MaxLeto"]
[Result "0-1"]
[WhiteElo "2124"]
[BlackElo "2392"]
[TimeControl "180+1"]
[EndTime "15:04:31 PDT"]
[Termination "MaxLeto won by resignation"]

1. d4 {[%clk 0:02:52.3]} 1... d5 {[%clk 0:02:59.5]} 2. c4 {[%clk 0:02:52.6]}
2... e6 {[%clk 0:02:59.2]} 3. g3 {[%clk 0:02:52.7]} 3... Nf6 {[%clk 0:02:59.6]}
4. Nf3 {[%clk 0:02:53.2]} 4... Be7 {[%clk 0:03:00.1]} 5. Bg2 {[%clk 0:02:53.5]}
5... O-O {[%clk 0:03:00.8]} 6. Nbd2 {[%clk 0:02:53.7]} 6... b6 {[%clk
0:02:59.1]} 7. O-O {[%clk 0:02:52.6]} 7... Bb7 {[%clk 0:02:59.7]} 8. Qa4 {[%clk
0:02:50.3]} 8... dxc4 {[%clk 0:02:51.6]} 9. Re1 {[%clk 0:02:43.4]} 9... Nbd7
{[%clk 0:02:24.2]} 10. Qxc4 {[%clk 0:02:40.4]} 10... c5 {[%clk 0:02:21.6]} 11.
dxc5 {[%clk 0:02:37.8]} 11... Nxc5 {[%clk 0:02:18.8]} 12. b4 {[%clk 0:02:23.6]}
12... Nce4 {[%clk 0:01:39.9]} 13. Nxe4 {[%clk 0:02:16.9]} 13... Bxe4 {[%clk
0:01:40.8]} 14. Bb2 {[%clk 0:02:13.6]} 14... Rc8 {[%clk 0:01:40]} 15. Qb3 {[%clk
0:02:13.3]} 15... Bc2 {[%clk 0:01:32.3]} 16. Qe3 {[%clk 0:02:01.9]} 16... Bxb4
{[%clk 0:01:28.8]} 17. Nd4 {[%clk 0:01:51]} 17... Bxe1 {[%clk 0:01:19.5]} 18.
Rxe1 {[%clk 0:01:40.2]} 18... Ba4 {[%clk 0:01:04.4]} 19. Qa3 {[%clk 0:01:06.7]}
19... Qd7 {[%clk 0:01:03.8]} 20. Rd1 {[%clk 0:01:04.2]} 20... Bxd1 {[%clk
0:01:02.2]} 0-1

[Event "Late-Titled-Tuesday-Blitz-May-28-2024"]
[Site "Chess.com"]
[Date "2024.05.28"]
[Round "6"]
[White "norwaytoadog"]
[Black "TokChess"]
[Result "1-0"]
[WhiteElo "2322"]
[BlackElo "2492"]
[TimeControl "180+1"]
[EndTime "15:04:47 PDT"]
[Termination "norwaytoadog won by resignation"]

1. e4 {[%clk 0:03:00.2]} 1... d6 {[%clk 0:02:58.7]} 2. d4 {[%clk 0:02:59.7]}
2... Nf6 {[%clk 0:02:59.4]} 3. Nc3 {[%clk 0:03:00.2]} 3... Nbd7 {[%clk
0:02:59.1]} 4. Nf3 {[%clk 0:03:00.1]} 4... e5 {[%clk 0:02:59.2]} 5. Rg1 {[%clk
0:02:59.8]} 5... g6 {[%clk 0:02:58.4]} 6. g4 {[%clk 0:02:59.8]} 6... Bg7 {[%clk
0:02:57.7]} 7. g5 {[%clk 0:02:59.2]} 7... Nh5 {[%clk 0:02:57.7]} 8. Bc4 {[%clk
0:02:58.8]} 8... c6 {[%clk 0:02:56.5]} 9. Be3 {[%clk 0:02:57.3]} 9... b5 {[%clk
0:02:52.8]} 10. Bb3 {[%clk 0:02:55.8]} 10... a5 {[%clk 0:02:48.9]} 11. a3 {[%clk
0:02:41.5]} 11... O-O {[%clk 0:02:41.1]} 12. d5 {[%clk 0:02:25.4]} 12... cxd5
{[%clk 0:02:35]} 13. Bxd5 {[%clk 0:02:15.8]} 13... Ra6 {[%clk 0:02:13.4]} 14.
Nxb5 {[%clk 0:02:12.4]} 14... Nb6 {[%clk 0:02:13.9]} 15. Nc3 {[%clk 0:02:00.2]}
15... Nxd5 {[%clk 0:02:11.4]} 16. Nxd5 {[%clk 0:02:00.7]} 16... Nf4 {[%clk
0:01:49.9]} 17. Nxf4 {[%clk 0:01:49.3]} 17... exf4 {[%clk 0:01:50.8]} 18. Bd4
{[%clk 0:01:49.6]} 18... Re8 {[%clk 0:01:40.5]} 19. Qd3 {[%clk 0:01:40]} 19...
Bb7 {[%clk 0:01:33.2]} 20. Nd2 {[%clk 0:01:29.2]} 20... Bxe4 {[%clk 0:01:23.9]}
21. Nxe4 {[%clk 0:01:24.9]} 21... d5 {[%clk 0:01:24]} 22. O-O-O {[%clk
0:01:09.6]} 22... Rxe4 {[%clk 0:01:03.4]} 23. Bxg7 {[%clk 0:00:57.2]} 23... Kxg7
{[%clk 0:01:02.3]} 24. Qxa6 {[%clk 0:00:56.6]} 1-0

[Event "Late-Titled-Tuesday-Blitz-May-28-2024"]
[Site "Chess.com"]
[Date "2024.05.28"]
[Round "6"]
[White "giomar27"]
[Black "Mikhail_Golubev"]
[Result "1/2-1/2"]
[WhiteElo "2467"]
[BlackElo "2635"]
[TimeControl "180+1"]
[EndTime "15:04:51 PDT"]
[Termination "Game drawn by repetition"]

1. e4 {[%clk 0:03:00.9]} 1... c5 {[%clk 0:03:00.1]} 2. Nf3 {[%clk 0:03:00.5]}
2... d6 {[%clk 0:03:00.3]} 3. d4 {[%clk 0:03:00.4]} 3... Nf6 {[%clk 0:03:00.1]}
4. Nc3 {[%clk 0:03:00.1]} 4... cxd4 {[%clk 0:03:00.7]} 5. Nxd4 {[%clk
0:03:00.9]} 5... g6 {[%clk 0:03:01.1]} 6. Be3 {[%clk 0:02:57.6]} 6... Bg7 {[%clk
0:03:01.3]} 7. f3 {[%clk 0:02:57.3]} 7... Nc6 {[%clk 0:03:01.9]} 8. Qd2 {[%clk
0:02:57.5]} 8... O-O {[%clk 0:03:02.4]} 9. Bc4 {[%clk 0:02:57.7]} 9... Nxd4
{[%clk 0:02:59.7]} 10. Bxd4 {[%clk 0:02:58.6]} 10... Be6 {[%clk 0:02:59.8]} 11.
Bxe6 {[%clk 0:02:57]} 11... fxe6 {[%clk 0:02:59.5]} 12. O-O-O {[%clk 0:02:57.6]}
12... Qa5 {[%clk 0:02:52]} 13. Kb1 {[%clk 0:02:57.5]} 13... Rac8 {[%clk
0:02:45]} 14. Rhe1 {[%clk 0:02:47.3]} 14... Nd7 {[%clk 0:02:00.1]} 15. Bxg7
{[%clk 0:02:41.5]} 15... Kxg7 {[%clk 0:02:01]} 16. Ne2 {[%clk 0:02:12.7]} 16...
Qxd2 {[%clk 0:01:57.2]} 17. Rxd2 {[%clk 0:02:13.6]} 17... Kf7 {[%clk 0:01:39]}
18. Nd4 {[%clk 0:02:11.5]} 18... e5 {[%clk 0:01:30.8]} 19. Ne2 {[%clk
0:02:10.7]} 19... Ke6 {[%clk 0:01:16.5]} 20. Red1 {[%clk 0:02:09.3]} 20... h5
{[%clk 0:01:02.6]} 21. h4 {[%clk 0:02:07.8]} 21... b5 {[%clk 0:00:51.4]} 22. Ng1
{[%clk 0:02:07.4]} 22... b4 {[%clk 0:00:42.8]} 23. b3 {[%clk 0:02:06.9]} 23...
a5 {[%clk 0:00:39.9]} 24. Rd5 {[%clk 0:02:06.9]} 24... Nc5 {[%clk 0:00:39.2]}
25. Nh3 {[%clk 0:01:30.9]} 25... Rfd8 {[%clk 0:00:37.1]} 26. Ng5+ {[%clk
0:01:27.8]} 26... Kf6 {[%clk 0:00:35.8]} 27. Nh7+ {[%clk 0:01:27.9]} 27... Kg7
{[%clk 0:00:34.7]} 28. Ng5 {[%clk 0:01:28.5]} 28... Kf6 {[%clk 0:00:33]} 29.
Nh7+ {[%clk 0:01:28.4]} 29... Kg7 {[%clk 0:00:33.1]} 30. Ng5 {[%clk 0:01:29]}
30... Kf6 {[%clk 0:00:33.3]} 1/2-1/2

[Event "Late-Titled-Tuesday-Blitz-May-28-2024"]
[Site "Chess.com"]
[Date "2024.05.28"]
[Round "6"]
[White "WildBizon"]
[Black "atalz0"]
[Result "1-0"]
[WhiteElo "2725"]
[BlackElo "2494"]
[TimeControl "180+1"]
[EndTime "15:04:52 PDT"]
[Termination "WildBizon won by resignation"]

1. e4 {[%clk 0:02:53.5]} 1... d5 {[%clk 0:03:00]} 2. exd5 {[%clk 0:02:53.5]}
2... Nf6 {[%clk 0:03:00.3]} 3. Nf3 {[%clk 0:02:53.2]} 3... Nxd5 {[%clk
0:03:00.5]} 4. c4 {[%clk 0:02:53.6]} 4... Nb6 {[%clk 0:02:57.8]} 5. Nc3 {[%clk
0:02:54]} 5... Bg4 {[%clk 0:02:47.4]} 6. c5 {[%clk 0:02:52.7]} 6... N6d7 {[%clk
0:02:42.5]} 7. d4 {[%clk 0:02:51]} 7... e5 {[%clk 0:02:38.1]} 8. Bc4 {[%clk
0:02:40.2]} 8... exd4 {[%clk 0:02:21.8]} 9. Qxd4 {[%clk 0:02:33.5]} 9... Bxf3
{[%clk 0:02:19.5]} 10. gxf3 {[%clk 0:02:33.1]} 10... Nc6 {[%clk 0:02:18]} 11.
Qf4 {[%clk 0:01:51.6]} 11... Qe7+ {[%clk 0:02:10]} 12. Be3 {[%clk 0:01:50.2]}
12... g5 {[%clk 0:01:21.6]} 13. Qxc7 {[%clk 0:01:47.6]} 13... Nxc5 {[%clk
0:01:16.5]} 14. Nd5 {[%clk 0:01:43.8]} 14... Qe5 {[%clk 0:00:50.8]} 15. O-O-O
{[%clk 0:01:39.7]} 15... Bd6 {[%clk 0:00:34.2]} 16. Nf6+ {[%clk 0:01:24]} 16...
Qxf6 {[%clk 0:00:34.1]} 17. Rxd6 {[%clk 0:01:23.1]} 17... Qe5 {[%clk 0:00:26.9]}
18. Rxc6 {[%clk 0:01:20.8]} 1-0

[Event "Late-Titled-Tuesday-Blitz-May-28-2024"]
[Site "Chess.com"]
[Date "2024.05.28"]
[Round "6"]
[White "Thjop"]
[Black "ccccvhhhj"]
[Result "1-0"]
[WhiteElo "2632"]
[BlackElo "2448"]
[TimeControl "180+1"]
[EndTime "15:04:52 PDT"]
[Termination "Thjop won by checkmate"]

1. d4 {[%clk 0:02:55.6]} 1... e5 {[%clk 0:02:58.1]} 2. dxe5 {[%clk 0:02:55.4]}
2... d6 {[%clk 0:02:58.9]} 3. exd6 {[%clk 0:02:55.6]} 3... Bxd6 {[%clk
0:02:59.8]} 4. Nf3 {[%clk 0:02:55.6]} 4... Bg4 {[%clk 0:03:00.1]} 5. Nbd2 {[%clk
0:02:54.5]} 5... Nc6 {[%clk 0:03:00.6]} 6. g3 {[%clk 0:02:54.9]} 6... Qe7 {[%clk
0:03:00.1]} 7. Bg2 {[%clk 0:02:54.8]} 7... O-O-O {[%clk 0:03:00.6]} 8. O-O
{[%clk 0:02:54.1]} 8... h5 {[%clk 0:02:59.9]} 9. c3 {[%clk 0:02:49.7]} 9... h4
{[%clk 0:02:59.8]} 10. Qb3 {[%clk 0:02:49.9]} 10... hxg3 {[%clk 0:02:56.5]} 11.
hxg3 {[%clk 0:02:49.1]} 11... Bh3 {[%clk 0:02:55.1]} 12. Nc4 {[%clk 0:02:05]}
12... Bxg2 {[%clk 0:02:29.8]} 13. Kxg2 {[%clk 0:02:03.9]} 13... Qxe2 {[%clk
0:02:16.9]} 14. Nxd6+ {[%clk 0:01:59.4]} 14... Rxd6 {[%clk 0:02:14.8]} 15. Bf4
{[%clk 0:01:48.1]} 15... Rd3 {[%clk 0:02:08.5]} 16. Ng5 {[%clk 0:01:31.9]} 16...
Nd4 {[%clk 0:01:03]} 17. Qxf7 {[%clk 0:01:23.8]} 17... Nc2 {[%clk 0:00:12.4]}
18. Qxc7# {[%clk 0:01:23.2]} 1-0

[Event "Late-Titled-Tuesday-Blitz-May-28-2024"]
[Site "Chess.com"]
[Date "2024.05.28"]
[Round "6"]
[White "KirAk47"]
[Black "bancsoo"]
[Result "1-0"]
[WhiteElo "2581"]
[BlackElo "2890"]
[TimeControl "180+1"]
[EndTime "15:04:58 PDT"]
[Termination "KirAk47 won by resignation"]

1. e4 {[%clk 0:02:51.5]} 1... d6 {[%clk 0:02:59.1]} 2. Nc3 {[%clk 0:02:50.5]}
2... Nf6 {[%clk 0:02:59.2]} 3. g3 {[%clk 0:02:51.1]} 3... g6 {[%clk 0:02:56.5]}
4. d3 {[%clk 0:02:51.2]} 4... Bg7 {[%clk 0:02:57]} 5. Bg2 {[%clk 0:02:51.7]}
5... O-O {[%clk 0:02:57.1]} 6. Nge2 {[%clk 0:02:52.3]} 6... c5 {[%clk
0:02:57.6]} 7. Be3 {[%clk 0:02:51.9]} 7... Nc6 {[%clk 0:02:56.7]} 8. h3 {[%clk
0:02:52.1]} 8... Nd7 {[%clk 0:02:45.2]} 9. Qd2 {[%clk 0:02:49.6]} 9... Re8
{[%clk 0:02:44.5]} 10. Bh6 {[%clk 0:02:37.1]} 10... Bh8 {[%clk 0:02:43.7]} 11.
O-O {[%clk 0:02:36.9]} 11... Rb8 {[%clk 0:02:39.3]} 12. f4 {[%clk 0:02:30.2]}
12... b5 {[%clk 0:02:37.1]} 13. g4 {[%clk 0:02:28.1]} 13... b4 {[%clk 0:02:32]}
14. Nd1 {[%clk 0:02:28.3]} 14... a5 {[%clk 0:02:30.7]} 15. Kh2 {[%clk
0:02:19.4]} 15... a4 {[%clk 0:02:30.4]} 16. Rc1 {[%clk 0:02:16.6]} 16... b3
{[%clk 0:02:26.1]} 17. axb3 {[%clk 0:02:13.5]} 17... axb3 {[%clk 0:02:27]} 18.
c3 {[%clk 0:02:14.2]} 18... Ba6 {[%clk 0:02:26.6]} 19. Ne3 {[%clk 0:02:14.2]}
19... e6 {[%clk 0:02:13.9]} 20. Bg5 {[%clk 0:02:12.6]} 20... Qc7 {[%clk
0:02:11.4]} 21. Rf2 {[%clk 0:02:07.4]} 21... f6 {[%clk 0:01:52.8]} 22. Bh4
{[%clk 0:02:07.5]} 22... Bg7 {[%clk 0:01:51.5]} 23. f5 {[%clk 0:02:01.1]} 23...
Nde5 {[%clk 0:01:46.2]} 24. fxe6 {[%clk 0:01:59]} 24... Nxd3 {[%clk 0:01:35.8]}
25. Nd5 {[%clk 0:01:50.3]} 25... Qb7 {[%clk 0:01:34.5]} 26. Rxf6 {[%clk
0:01:39.1]} 26... Bxf6 {[%clk 0:01:26.2]} 27. Nxf6+ {[%clk 0:01:34.7]} 27... Kg7
{[%clk 0:01:14.7]} 28. Nxe8+ {[%clk 0:01:17.7]} 28... Rxe8 {[%clk 0:01:14.6]}
29. Ra1 {[%clk 0:01:18.6]} 29... Rxe6 {[%clk 0:01:07.6]} 30. Nf4 {[%clk
0:01:13.2]} 30... Re8 {[%clk 0:00:57]} 31. Nxd3 {[%clk 0:01:10.9]} 1-0

[Event "Late-Titled-Tuesday-Blitz-May-28-2024"]
[Site "Chess.com"]
[Date "2024.05.28"]
[Round "6"]
[White "giovannibrandao7"]
[Black "BogdanDeac"]
[Result "0-1"]
[WhiteElo "2294"]
[BlackElo "3064"]
[TimeControl "180+1"]
[EndTime "15:05:00 PDT"]
[Termination "BogdanDeac won by resignation"]

1. e4 {[%clk 0:03:00.9]} 1... c5 {[%clk 0:02:58]} 2. Nf3 {[%clk 0:03:01.2]} 2...
e6 {[%clk 0:02:57.9]} 3. d4 {[%clk 0:03:01.5]} 3... cxd4 {[%clk 0:02:57.5]} 4.
Nxd4 {[%clk 0:03:02.4]} 4... a6 {[%clk 0:02:57.9]} 5. Bd3 {[%clk 0:03:01.6]}
5... g6 {[%clk 0:02:56.2]} 6. O-O {[%clk 0:03:00.7]} 6... Bg7 {[%clk 0:02:56.6]}
7. c3 {[%clk 0:03:01]} 7... Ne7 {[%clk 0:02:56.6]} 8. Na3 {[%clk 0:02:55.8]}
8... d6 {[%clk 0:02:54.1]} 9. Nac2 {[%clk 0:02:50]} 9... O-O {[%clk 0:02:53.1]}
10. a4 {[%clk 0:02:50.4]} 10... b6 {[%clk 0:02:53]} 11. Bg5 {[%clk 0:02:44.9]}
11... Bb7 {[%clk 0:02:51.4]} 12. Re1 {[%clk 0:02:43.3]} 12... Nd7 {[%clk
0:02:51.2]} 13. Bf1 {[%clk 0:02:20.5]} 13... h6 {[%clk 0:02:49.3]} 14. Bh4
{[%clk 0:02:19.7]} 14... Re8 {[%clk 0:02:46]} 15. f3 {[%clk 0:02:06.5]} 15...
Qc7 {[%clk 0:02:43.2]} 16. Bf2 {[%clk 0:02:05.8]} 16... d5 {[%clk 0:02:31.8]}
17. exd5 {[%clk 0:01:49.4]} 17... Nxd5 {[%clk 0:02:32.7]} 18. Ne3 {[%clk
0:01:44.8]} 18... N5f6 {[%clk 0:02:30.9]} 19. Qc2 {[%clk 0:01:35.2]} 19... e5
{[%clk 0:02:30.3]} 20. Ne2 {[%clk 0:01:21.6]} 20... Nc5 {[%clk 0:02:28.6]} 21.
b4 {[%clk 0:01:16.2]} 21... Ne6 {[%clk 0:02:26.8]} 22. Rad1 {[%clk 0:01:12.5]}
22... a5 {[%clk 0:02:23.5]} 23. Qb3 {[%clk 0:00:59.4]} 23... Rac8 {[%clk
0:02:20.8]} 24. bxa5 {[%clk 0:00:40.2]} 24... bxa5 {[%clk 0:02:20.5]} 25. Nc2
{[%clk 0:00:21.3]} 25... e4 {[%clk 0:02:12.3]} 26. fxe4 {[%clk 0:00:19]} 26...
Nxe4 {[%clk 0:02:11.9]} 27. Bd4 {[%clk 0:00:11.3]} 27... Nxd4 {[%clk 0:02:07.7]}
28. Ncxd4 {[%clk 0:00:12.2]} 28... Nc5 {[%clk 0:02:05.9]} 29. Qb5 {[%clk
0:00:09.5]} 29... Ba6 {[%clk 0:02:05.4]} 30. Qb1 {[%clk 0:00:03.5]} 30... Nxa4
{[%clk 0:02:05.6]} 31. Ng3 {[%clk 0:00:01.6]} 31... Nxc3 {[%clk 0:02:05.2]} 32.
Rxe8+ {[%clk 0:00:01.5]} 32... Rxe8 {[%clk 0:02:05.1]} 33. Qc2 {[%clk 0:00:02]}
33... Nxd1 {[%clk 0:02:01.8]} 0-1